[Event "Seniors-LEM-50 Sachsen-Anhalt 2024"]
[Site "Magdeburg"]
[Date "2024.07.03"]
[Round "3.1"]
[White "Hansch, Torsten"]
[Black "Weitz, Andreas"]
[Result "1-0"]
[ECO "D96"]
[WhiteElo "2047"]
[BlackElo "1936"]
[Annotator "RC"]
[PlyCount "77"]
[EventDate "2024.06.25"]
[EventType "swiss"]
[EventCountry "GER"]
[SourceTitle "playchess.com"]
[Source "ChessBase"]
[SourceQuality "1"]
[TimeControl "40/5400+30:1800+30"]

1. d4 {[%emt 0:01:04]} Nf6 {[%emt 0:00:13]} 2. c4 {[%emt 0:00:09]} g6 {[%emt 0:00:05]} 3. Nc3 {[%emt 0:00:10]} d5 {[%emt 0:00:06]} 4. Nf3 {[%emt 0:00:10]} Bg7 {[%emt 0:00:11]} 5. Qb3 {[%emt 0:00:11]} c6 {[%emt 0:00:32]} 6. cxd5 {[%emt 0:02:56]} Nxd5 {[%emt 0:00:39]} 7. e4 {[%emt 0:01:17]} Nxc3 {[%emt 0:00:24]} 8. bxc3 {[%emt 0:00:20]} O-O {[%emt 0:00:04]} 9. Bc4 {[%emt 0:01:27]} b5 {[%emt 0:00:36]} 10. Be2 {[%emt 0:00:28]} Be6 {[%emt 0:02:00]} 11. Qc2 {[%emt 0:01:14]} a6 {[%emt 0:06:31]} 12. O-O {[%emt 0:00:22]} f6 {[%emt 0:01:49]} 13. a4 {[%emt 0:01:08]} Nd7 {[%emt 0:00:21]} 14. axb5 {[%emt 0:02:29]} axb5 {[%emt 0:00:24]} 15. Ba3 {[%emt 0:03:31]} Re8 {[%emt 0:02:46]} 16. Bb4 {[%emt 0:00:25]} Bf8 {[%emt 0:02:53]} 17. c4 {[%emt 0:10:00]} Qb6 {[%emt 0:04:02]} 18. d5 {[%emt 0:04:35]} Bf7 {[%emt 0:04:32]} 19. c5 {[%emt 0:03:28]} Qb7 {[%emt 0:00:23]} 20. dxc6 {[%emt 0:06:27]} Qxc6 {[%emt 0:00:46]} 21. Nd4 {[%emt 0:00:16]} Qc8 {[%emt 0:01:45]} 22. Bxb5 {[%emt 0:03:20]} Rxa1 {[%emt 0:03:05]} 23. Rxa1 {[%emt 0:00:03]} e5 {[%emt 0:00:50]} 24. Qa4 {[%emt 0:13:49]} Rd8 {[%emt 0:05:15]} 25. Nc6 {[%emt 0:06:13]} Nxc5 {[%emt 0:00:48]} 26. Bxc5 {[%emt 0:00:22]} Bxc5 {[%emt 0:00:02]} 27. Nxd8 {[%emt 0:03:26]} Qxd8 {[%emt 0:04:50]} 28. Qa8 {[%emt 0:02:34]} Qxa8 {[%emt 0:01:30]} 29. Rxa8+ {[%emt 0:00:02]} Bf8 {[%emt 0:01:49]} 30. Bc6 {[%emt 0:00:28]} f5 {[%emt 0:00:30]} 31. Bd5 {[%emt 0:03:56]} fxe4 {[%emt 0:00:22]} 32. Bxf7+ {[%emt 0:00:12]} Kxf7 {[%emt 0:00:03]} 33. Ra4 {[%emt 0:00:19]} e3 {[%emt 0:01:33]} 34. fxe3 {[%emt 0:00:02]} h5 {[%emt 0:00:15]} 35. Ra6 {[%emt 0:00:38]} Bc5 {[%emt 0:00:26]} 36. Kf2 {[%emt 0:00:04]} g5 {[%emt 0:00:15]} 37. Kf3 {[%emt 0:00:18]} h4 {[%emt 0:00:52]} 38. Ke4 {[%emt 0:00:05]} Kg7 {[%emt 0:00:31]} 39. Rc6 {[%emt 0:00:14]} 1-0

[Event "Seniors-LEM-50 Sachsen-Anhalt 2024"]
[Site "Magdeburg"]
[Date "2024.07.03"]
[Round "3.2"]
[White "Hoffmann, Uwe"]
[Black "Mitschka, Manfred"]
[Result "1/2-1/2"]
[ECO "A40"]
[WhiteElo "2013"]
[BlackElo "1863"]
[Annotator "NA RC"]
[PlyCount "75"]
[EventDate "2024.06.25"]
[EventType "swiss"]
[EventCountry "GER"]
[SourceTitle "playchess.com"]
[Source "ChessBase"]
[SourceQuality "1"]
[TimeControl "40/5400+30:1800+30"]

1. d4 {[%emt 0:00:03]} e6 {[%emt 0:00:23]} 2. c4 {[%emt 0:00:12]} b6 {[%emt 0:00:05]} 3. e4 {[%emt 0:00:42]} Bb7 {[%emt 0:00:14]} 4. Bd3 {[%emt 0:03:04]} Bb4+ {[%emt 0:00:30]} 5. Bd2 {[%emt 0:01:00]} Bxd2+ {[%emt 0:00:38]} 6. Qxd2 {[%emt 0:00:12] A40: Unusual replies to 1 d4.} f5 {[%emt 0:00:19]} 7. Nc3 {[%emt 0:02:46]} Qh4 {[%emt 0:09:34]} 8. g3 {[%emt 0:03:50]} Qe7 {[%emt 0:05:46]} 9. f3 {[%emt 0:05:47]} Nc6 {[%emt 0:06:38]} 10. Nge2 {[%emt 0:01:25]} O-O-O {[%emt 0:07:19]} 11. O-O-O {[%emt 0:02:41]} fxe4 {[%emt 0:02:54]} 12. fxe4 {[%emt 0:01:40]} Rf8 {[%emt 0:05:11]} 13. Rhf1 {[%emt 0:08:03]} Nf6 {[%emt 0:02:55]} 14. h3 {[%emt 0:02:27]} Nb4 {[%emt 0:08:04]} 15. Bb1 {[%emt 0:07:08]} Nc6 {[%emt 0:07:29]} (15... e5 $11) 16. Ng1 {[%emt 0:17:29]} Ne8 {[%emt 0:03:03]} (16... Ba6 $142) 17. Nf3 {[%emt 0:04:05]} Na5 {[%emt 0:03:28]} (17... Kb8 $11 {might be stronger.}) 18. Bd3 {[%emt 0:05:31]} Ba6 {[%emt 0:11:16]} (18... Rf7 $14) 19. Qe2 {[%emt 0:07:59]} Nc6 {[%emt 0:06:06] [#]} 20. c5 $1 {[%emt 0:05:08]} Bb7 {[%emt 0:02:22]} 21. cxb6 {[%emt 0:04:07]} ({White should play} 21. Qe3 $16) 21... cxb6 {[%emt 0:00:48]} 22. Kb1 {[%emt 0:01:57]} Nc7 {[%emt 0:00:49]} 23. Nb5 {[%emt 0:03:58]} Nxb5 {[%emt 0:01:26]} 24. Bxb5 {[%emt 0:00:09]} Rf7 $11 {[%emt 0:02:09]} 25. Ba6 {[%emt 0:08:12]} Rhf8 {[%emt 0:02:34]} 26. Bxb7+ {[%emt 0:00:53]} Kxb7 {[%emt 0:00:10]} 27. Nh2 {[%emt 0:01:54]} Rxf1 {[%emt 0:01:51]} 28. Nxf1 {[%emt 0:00:01]} Qf6 {[%emt 0:00:41]} 29. d5 {[%emt 0:01:30]} exd5 {[%emt 0:02:51]} 30. exd5 {[%emt 0:00:02]} Qf5+ {[%emt 0:04:11]} 31. Ka1 {[%emt 0:00:48]} Nb4 {[%emt 0:00:42]} 32. a3 {[%emt 0:00:21]} Na6 {[%emt 0:00:38]} 33. Ne3 {[%emt 0:00:45]} Qe5 {[%emt 0:00:42]} 34. g4 {[%emt 0:00:42]} Re8 {[%emt 0:00:15]} 35. Rd3 {[%emt 0:00:31]} Nc5 {[%emt 0:00:11]} 36. Rc3 {[%emt 0:00:05]} Na4 {[%emt 0:00:36]} 37. Rb3 {[%emt 0:00:19]} Nc5 {[%emt 0:00:45]} 38. Rc3 {[%emt 0:00:30]} 1/2-1/2

[Event "Seniors-LEM-50 Sachsen-Anhalt 2024"]
[Site "Magdeburg"]
[Date "2024.07.03"]
[Round "3.3"]
[White "Klanten, Christoph"]
[Black "Langner, Hans-Rainer"]
[Result "1-0"]
[ECO "B01"]
[WhiteElo "1968"]
[BlackElo "1730"]
[Annotator "RC"]
[PlyCount "57"]
[EventDate "2024.06.25"]
[EventType "swiss"]
[EventCountry "GER"]
[SourceTitle "playchess.com"]
[Source "ChessBase"]
[SourceQuality "1"]
[TimeControl "40/5400+30:1800+30"]

1. e4 {[%emt 0:00:03]} d5 {[%emt 0:08:48]} 2. exd5 {[%emt 0:00:12]} Nf6 {[%emt 0:00:20]} 3. d4 {[%emt 0:00:08]} Nxd5 {[%emt 0:00:24]} 4. c4 {[%emt 0:00:07]} Nb4 {[%emt 0:02:07]} 5. a3 {[%emt 0:04:17]} N4a6 {[%emt 0:01:25]} 6. Nf3 {[%emt 0:00:40]} Bg4 {[%emt 0:01:18]} 7. Be2 {[%emt 0:00:49]} c5 {[%emt 0:02:00]} 8. d5 {[%emt 0:05:19]} e6 {[%emt 0:01:05]} 9. h3 {[%emt 0:03:18]} Bh5 {[%emt 0:01:43]} 10. Nc3 {[%emt 0:00:48]} Be7 {[%emt 0:01:06]} 11. Qb3 {[%emt 0:04:17]} Qc8 {[%emt 0:05:41]} 12. Bf4 {[%emt 0:02:22]} O-O {[%emt 0:01:41]} 13. O-O {[%emt 0:01:21]} Nd7 {[%emt 0:01:15]} 14. Rfe1 {[%emt 0:03:35]} Bxf3 {[%emt 0:07:14]} 15. Bxf3 {[%emt 0:01:23]} g5 {[%emt 0:03:06]} 16. Bg3 {[%emt 0:01:36]} Nb6 {[%emt 0:01:11]} 17. Rad1 {[%emt 0:06:48]} Bf6 {[%emt 0:03:02]} 18. dxe6 {[%emt 0:05:59]} fxe6 {[%emt 0:02:28]} 19. Bg4 {[%emt 0:05:24]} Re8 {[%emt 0:02:49]} 20. Nb5 {[%emt 0:03:00]} Re7 {[%emt 0:03:00]} 21. Nxa7 {[%emt 0:02:41]} Rxa7 {[%emt 0:04:31]} 22. Qxb6 {[%emt 0:00:16]} Ra8 {[%emt 0:04:22]} 23. Rxe6 {[%emt 0:01:35]} Qf8 {[%emt 0:02:55]} 24. Rxf6 {[%emt 0:01:57]} Qg7 {[%emt 0:00:18]} 25. Rd8+ {[%emt 0:02:56]} Re8 {[%emt 0:00:49]} 26. Qe6+ {[%emt 0:00:29]} Kh8 {[%emt 0:00:17]} 27. Rxe8+ {[%emt 0:00:09]} Rxe8 {[%emt 0:00:10]} 28. Qxe8+ {[%emt 0:00:09]} Qg8 {[%emt 0:00:11]} 29. Rf8 {[%emt 0:00:20]} 1-0

[Event "Seniors-LEM-50 Sachsen-Anhalt 2024"]
[Site "Magdeburg"]
[Date "2024.07.03"]
[Round "3.4"]
[White "Schiller, Dirk"]
[Black "Frankenberger, Ralf"]
[Result "1/2-1/2"]
[ECO "D02"]
[WhiteElo "1885"]
[BlackElo "1939"]
[Annotator "NA RC"]
[PlyCount "28"]
[EventDate "2024.06.25"]
[EventType "swiss"]
[EventCountry "GER"]
[SourceTitle "playchess.com"]
[Source "ChessBase"]
[SourceQuality "1"]
[TimeControl "40/5400+30:1800+30"]

1. d4 {[%emt 0:00:06]} Nf6 {[%emt 0:00:13]} 2. Bf4 {[%emt 0:00:40]} d5 {[%emt 0:00:09]} 3. e3 {[%emt 0:00:24]} e6 {[%emt 0:00:14]} 4. Nf3 {[%emt 0:00:24]} c5 {[%emt 0:03:49]} 5. c3 {[%emt 0:00:54]} Bd6 {[%emt 0:01:54]} 6. Ne5 {[%emt 0:01:14]} Qc7 {[%emt 0:01:22]} 7. Nd2 {[%emt 0:04:09]} Nbd7 {[%emt 0:03:25]} 8. Ndf3 {[%emt 0:02:03]} Ne4 {[%emt 0:12:20]} 9. Bb5 {[%emt 0:02:15]} f6 {[%emt 0:02:46]} 10. Nxd7 {[%emt 0:00:35]} Bxd7 {[%emt 0:00:06]} 11. Bxd7+ {[%emt 0:02:52]} Qxd7 {[%emt 0:02:35]} 12. O-O {[%emt 0:02:21]} O-O {[%emt 0:02:54]} 13. Bxd6 {[%emt 0:03:12]} Qxd6 {[%emt 0:00:43]} 14. dxc5 {[%emt 0:01:45]} Qxc5 {[%emt 0:08:11]} 1/2-1/2

[Event "Seniors-LEM-50 Sachsen-Anhalt 2024"]
[Site "Magdeburg"]
[Date "2024.07.03"]
[Round "3.5"]
[White "Hencke, Heiko"]
[Black "Dannhauer, Frank"]
[Result "1/2-1/2"]
[ECO "D02"]
[WhiteElo "1855"]
[BlackElo "1921"]
[Annotator "NA RC"]
[PlyCount "82"]
[EventDate "2024.06.25"]
[EventType "swiss"]
[EventCountry "GER"]
[SourceTitle "playchess.com"]
[Source "ChessBase"]
[SourceQuality "1"]
[TimeControl "40/5400+30:1800+30"]

1. d4 {[%emt 0:00:05]} d5 {[%emt 0:00:26]} 2. Nf3 {[%emt 0:00:14]} Nf6 {[%emt 0:00:17]} 3. Bf4 {[%emt 0:00:19]} g6 {[%emt 0:02:42]} 4. e3 {[%emt 0:00:45]} Bg7 {[%emt 0:00:16]} 5. Bd3 {[%emt 0:00:40]} Nbd7 {[%emt 0:00:58]} 6. Nbd2 {[%emt 0:00:30] D02: 1 d4 d5 2 Nf3 sidelines, including 2...Nf6 3 g3 and 2...Nf6 3 Bf4.} c5 {[%emt 0:03:05]} 7. c3 {[%emt 0:01:19]} O-O {[%emt 0:06:38]} 8. h3 {[%emt 0:00:41]} c4 {[%emt 0:04:36]} 9. Bc2 {[%emt 0:00:46]} Re8 {[%emt 0:05:40]} 10. O-O {[%emt 0:01:12]} Qb6 {[%emt 0:14:18]} 11. Qb1 {[%emt 0:07:22]} Nh5 {[%emt 0:15:48]} 12. Bh2 {[%emt 0:02:17]} f5 {[%emt 0:00:38]} 13. b3 {[%emt 0:04:10]} cxb3 {[%emt 0:09:03]} 14. Qxb3 {[%emt 0:04:07]} e6 {[%emt 0:01:08]} 15. c4 {[%emt 0:03:06]} Nhf6 {[%emt 0:07:02]} 16. Ne5 {[%emt 0:09:35]} Qxb3 {[%emt 0:07:37]} 17. Bxb3 {[%emt 0:02:00]} Nxe5 {[%emt 0:01:32]} 18. Bxe5 {[%emt 0:00:39]} Ne4 {[%emt 0:00:24]} 19. Nf3 {[%emt 0:02:47]} (19. Nxe4 $16 dxe4 20. Ba4) 19... dxc4 {[%emt 0:04:19]} 20. Bxc4 {[%emt 0:00:47]} Bd7 {[%emt 0:01:20]} 21. Rfc1 {[%emt 0:01:51]} Bc6 {[%emt 0:02:25]} 22. Rab1 {[%emt 0:02:27]} Bxe5 {[%emt 0:05:01]} 23. Nxe5 {[%emt 0:00:31]} (23. dxe5 $14 b6 24. Nd4) 23... Nd2 {[%emt 0:00:13]} 24. Rb2 {[%emt 0:01:43]} Nxc4 {[%emt 0:00:09]} 25. Rxc4 {[%emt 0:00:45]} Bd5 {[%emt 0:00:18]} 26. Rc7 {[%emt 0:00:48]} Rec8 {[%emt 0:00:20]} (26... Rac8 $11 {is more appropriate.} 27. Rbc2 Rxc7 28. Rxc7 a6) 27. Rd7 {[%emt 0:07:37]} Rc1+ {[%emt 0:02:04]} 28. Kh2 {[%emt 0:00:07]} Rac8 {[%emt 0:00:08]} 29. Nd3 {[%emt 0:02:03]} (29. h4 $14) 29... R1c2 {[%emt 0:00:45] [#]} 30. Rd8+ $1 {[%emt 0:03:23]} Kg7 {[%emt 0:01:14]} 31. Rxc8 {[%emt 0:00:52]} Rxc8 {[%emt 0:00:02]} 32. Nf4 {[%emt 0:00:41]} Rc7 {[%emt 0:01:34]} (32... b6 $1 $11) 33. Nxd5 {[%emt 0:02:40]} exd5 {[%emt 0:00:01]} 34. g4 {[%emt 0:01:21]} Kf6 {[%emt 0:00:28]} 35. Kg3 {[%emt 0:00:30]} h6 {[%emt 0:00:31]} (35... b6 $11) 36. h4 {[%emt 0:01:31]} b6 {[%emt 0:00:37]} 37. Kf4 {[%emt 0:00:41]} (37. Rb5 $14) 37... fxg4 {[%emt 0:01:20]} 38. Kxg4 {[%emt 0:00:10]} Rc1 {[%emt 0:00:47]} 39. Re2 {[%emt 0:00:57]} h5+ {[%emt 0:01:26]} 40. Kg3 {[%emt 0:00:37]} Rc3 {[%emt 0:01:30]} (40... Kf5 $15 {was preferrable.}) 41. Kf4 $11 {[%emt 0:30:51]} Rc4 {[%emt 0:04:20]} 1/2-1/2

[Event "Seniors-LEM-50 Sachsen-Anhalt 2024"]
[Site "Magdeburg"]
[Date "2024.07.03"]
[Round "3.6"]
[White "Anderberg, Peter"]
[Black "Richter, Juergen"]
[Result "1/2-1/2"]
[ECO "D35"]
[WhiteElo "1909"]
[BlackElo "1841"]
[Annotator "NA RC"]
[PlyCount "27"]
[EventDate "2024.06.25"]
[EventType "swiss"]
[EventCountry "GER"]
[SourceTitle "playchess.com"]
[Source "ChessBase"]
[SourceQuality "1"]
[TimeControl "40/5400+30:1800+30"]

1. d4 {[%emt 0:01:00]} d5 {[%emt 0:00:46]} 2. c4 {[%emt 0:00:57]} e6 {[%emt 0:00:22]} 3. Nc3 {[%emt 0:00:14]} Nf6 {[%emt 0:00:16]} 4. cxd5 {[%emt 0:01:37]} exd5 {[%emt 0:00:14]} 5. Bg5 {[%emt 0:00:18]} Be7 {[%emt 0:05:05]} 6. e3 {[%emt 0:02:17]} O-O {[%emt 0:00:52]} 7. Bd3 {[%emt 0:00:25]} Nc6 {[%emt 0:00:40]} 8. a3 {[%emt 0:12:10]} a6 {[%emt 0:00:32]} 9. Bxf6 {[%emt 0:01:54]} Bxf6 {[%emt 0:00:20]} 10. Qh5 {[%emt 0:00:08]} g6 {[%emt 0:01:05]} 11. Qxd5 {[%emt 0:00:12]} Qe7 {[%emt 0:00:47]} 12. Nge2 {[%emt 0:04:45]} Bg7 {[%emt 0:11:14]} 13. Qf3 {[%emt 0:06:27]} Rd8 {[%emt 0:00:31]} 14. Rd1 {[%emt 0:14:58]} 1/2-1/2

[Event "Seniors-LEM-50 Sachsen-Anhalt 2024"]
[Site "Magdeburg"]
[Date "2024.07.03"]
[Round "3.7"]
[White "Wirp, Hans-Werner"]
[Black "Korte, Markus"]
[Result "0-1"]
[ECO "D00"]
[WhiteElo "1841"]
[BlackElo "1895"]
[Annotator "NA RC"]
[PlyCount "68"]
[EventDate "2024.06.25"]
[EventType "swiss"]
[EventCountry "GER"]
[SourceTitle "playchess.com"]
[Source "ChessBase"]
[SourceQuality "1"]
[TimeControl "40/5400+30:1800+30"]

1. d4 {[%emt 0:03:37]} d5 {[%emt 0:00:39]} 2. e4 {[%emt 0:00:29]} dxe4 {[%emt 0:00:06]} 3. Nc3 {[%emt 0:00:27]} Nf6 {[%emt 0:00:08]} 4. f3 {[%emt 0:00:06]} Bf5 {[%emt 0:00:17]} 5. fxe4 {[%emt 0:02:49]} Nxe4 {[%emt 0:01:03]} 6. Qf3 {[%emt 0:01:34]} Nd6 {[%emt 0:04:07]} 7. Bf4 {[%emt 0:09:32]} Qc8 {[%emt 0:01:32]} 8. h3 {[%emt 0:00:36] D00: 1 d4 d5: Unusual lines.} e6 {[%emt 0:04:00]} 9. g4 {[%emt 0:02:11]} Bg6 {[%emt 0:03:23]} 10. Bg2 {[%emt 0:05:34]} c6 {[%emt 0:10:36]} 11. Nge2 {[%emt 0:03:42]} Qd8 {[%emt 0:14:36]} 12. O-O {[%emt 0:05:28]} Na6 {[%emt 0:06:46]} 13. a3 {[%emt 0:02:04]} Be7 {[%emt 0:01:13]} 14. b4 {[%emt 0:08:46]} Nc7 {[%emt 0:01:47]} 15. Bxd6 {[%emt 0:07:04]} Bxd6 {[%emt 0:04:26]} 16. Ne4 {[%emt 0:00:12]} Be7 {[%emt 0:01:55]} 17. Rad1 {[%emt 0:03:48]} O-O {[%emt 0:01:03]} 18. c4 {[%emt 0:01:24]} Bxe4 {[%emt 0:03:38]} 19. Qxe4 {[%emt 0:00:10]} a5 {[%emt 0:00:12]} 20. Rb1 {[%emt 0:12:38]} axb4 {[%emt 0:02:51]} 21. axb4 {[%emt 0:00:03]} Ra4 {[%emt 0:00:25]} 22. c5 {[%emt 0:00:16]} Bf6 {[%emt 0:05:15]} 23. Rfd1 {[%emt 0:01:27]} Nb5 {[%emt 0:02:15]} 24. Qc2 {[%emt 0:01:12]} Qa8 {[%emt 0:01:55]} ({But not} 24... Nxd4 25. Qxa4 Nxe2+ 26. Kf1 Ng3+ 27. Kf2 $17) 25. Be4 {[%emt 0:01:35]} g6 {[%emt 0:01:51]} 26. Rd3 $2 {[%emt 0:02:32]} (26. Nc3 Nxc3 (26... Nxd4 27. Qf2 $18) 27. Qxc3) 26... Na3 {[%emt 0:01:46]} 27. Rxa3 {[%emt 0:01:47]} Rxa3 {[%emt 0:00:07]} 28. Bd3 {[%emt 0:00:16]} Rd8 {[%emt 0:00:35]} 29. Qc4 {[%emt 0:04:48]} Qb8 {[%emt 0:04:23]} 30. Rf1 {[%emt 0:00:11]} Bxd4+ {[%emt 0:00:50]} 31. Kg2 {[%emt 0:01:08]} Be3 {[%emt 0:04:21]} 32. Bb1 {[%emt 0:02:28]} Rd2 {[%emt 0:02:06]} 33. h4 {[%emt 0:00:25]} Qe5 {[%emt 0:03:04]} 34. h5 {[%emt 0:04:02]} Rc3 {[%emt 0:00:33]} 0-1

[Event "Seniors-LEM-50 Sachsen-Anhalt 2024"]
[Site "Magdeburg"]
[Date "2024.07.03"]
[Round "3.8"]
[White "Puschendorf, Steffen"]
[Black "Buciu, Aurel-John"]
[Result "1-0"]
[ECO "D11"]
[WhiteElo "2067"]
[BlackElo "1807"]
[Annotator "RC"]
[PlyCount "35"]
[EventDate "2024.06.25"]
[EventType "swiss"]
[EventCountry "GER"]
[SourceTitle "playchess.com"]
[Source "ChessBase"]
[SourceQuality "1"]
[TimeControl "40/5400+30:1800+30"]

1. d4 {[%emt 0:00:01]} d5 {[%emt 0:00:08]} 2. c4 {[%emt 0:00:06]} c6 {[%emt 0:00:01]} 3. Nf3 {[%emt 0:00:11]} Nf6 {[%emt 0:00:30]} 4. Qc2 {[%emt 0:00:34]} Bg4 {[%emt 0:00:39]} 5. Ne5 {[%emt 0:01:07]} Bh5 {[%emt 0:00:31]} 6. cxd5 {[%emt 0:03:45]} Nxd5 {[%emt 0:00:51]} 7. Qb3 {[%emt 0:03:39]} Qb6 {[%emt 0:02:06]} 8. Qh3 {[%emt 0:01:52]} Nf6 {[%emt 0:10:56]} 9. Qc8+ {[%emt 0:05:55]} Qd8 {[%emt 0:00:11]} 10. Qxb7 {[%emt 0:00:12]} Nbd7 {[%emt 0:00:20]} 11. Nc3 {[%emt 0:01:26]} c5 {[%emt 0:10:45]} 12. e3 {[%emt 0:04:26]} cxd4 {[%emt 0:01:10]} 13. exd4 {[%emt 0:01:06]} a6 {[%emt 0:04:46]} 14. Bxa6 {[%emt 0:04:38]} Rb8 {[%emt 0:02:13]} 15. Qc6 {[%emt 0:02:05]} Rb6 {[%emt 0:00:12]} 16. Qc4 {[%emt 0:03:12]} Ne4 {[%emt 0:03:56]} 17. Nxe4 {[%emt 0:02:30]} Nxe5 {[%emt 0:00:15]} 18. Bb5+ {[%emt 0:00:43]} 1-0

[Event "Seniors-LEM-50 Sachsen-Anhalt 2024"]
[Site "Magdeburg"]
[Date "2024.07.03"]
[Round "3.10"]
[White "Schomann, Michael"]
[Black "Kottke, Steffen"]
[Result "0-1"]
[ECO "D08"]
[WhiteElo "1777"]
[BlackElo "1933"]
[Annotator "NA RC"]
[PlyCount "74"]
[EventDate "2024.06.25"]
[EventType "swiss"]
[EventCountry "GER"]
[SourceTitle "playchess.com"]
[Source "ChessBase"]
[SourceQuality "1"]
[TimeControl "40/5400+30:1800+30"]

1. d4 {[%emt 1:31:00]} d5 {[%emt 1:31:00]} 2. c4 {[%emt 0:00:30]} e5 {[%emt 0:00:30]} 3. dxe5 {[%emt 0:00:30]} d4 {[%emt 0:00:30]} 4. Nf3 {[%emt 0:00:30]} Nc6 {[%emt 0:00:30]} 5. a3 {[%emt 0:00:30]} Bg4 {[%emt 0:00:30]} 6. Nbd2 {[%emt 0:00:30]} Nge7 {[%emt 0:00:30]} 7. h3 {[%emt 0:00:30] D08: Albin Counter Gambit.} Be6 {[%emt 0:00:30]} 8. b3 {[%emt 0:00:30]} Ng6 {[%emt 0:00:30]} 9. Bb2 {[%emt 0:00:30]} Ngxe5 {[%emt 0:00:30]} 10. Ne4 {[%emt 0:00:30]} Nxf3+ {[%emt 0:00:30]} 11. exf3 {[%emt 0:00:30]} f5 {[%emt 0:00:30]} 12. Ng3 {[%emt 0:00:30]} Bd6 {[%emt 0:00:30]} 13. Bd3 {[%emt 0:00:30]} Qg5 {[%emt 0:00:30]} 14. Bc1 {[%emt 0:00:30]} Qf6 {[%emt 0:00:30]} 15. f4 {[%emt 0:00:30]} (15. O-O $1 $11) 15... O-O-O {[%emt 0:00:30]} 16. O-O {[%emt 0:00:30]} g6 {[%emt 0:00:30]} 17. b4 {[%emt 0:00:30]} h6 {[%emt 0:00:30]} 18. Bd2 {[%emt 0:00:30]} g5 {[%emt 0:00:30] [#]} 19. Nh5 {[%emt 0:00:30]} ({Better is} 19. Re1 $1 $16 {[%cal Re1e6]} Rde8 (19... Bxf4 $2 {loses.} 20. Rxe6 Qf7 21. Bxf4 $18) 20. b5) 19... Qf7 {[%emt 0:00:30]} 20. b5 {[%emt 0:00:30]} Nb8 {[%emt 0:00:30]} 21. g4 $2 {[%emt 0:00:30]} (21. Bb4 $1 $11 {and White has nothing to worry.}) 21... fxg4 {[%emt 0:00:30]} 22. hxg4 {[%emt 0:00:30]} gxf4 {[%emt 0:00:30]} 23. Be4 {[%emt 0:00:30]} Bxg4 {[%emt 0:00:30]} 24. Qxg4+ {[%emt 0:00:30]} Nd7 {[%emt 0:00:30]} 25. Bxb7+ {[%emt 0:00:30]} Kxb7 {[%emt 0:00:30]} 26. Qf3+ {[%emt 0:00:30]} Kb8 {[%emt 0:00:30]} 27. Kh1 {[%emt 0:00:30]} Ne5 {[%emt 0:00:30]} 28. Qh3 {[%emt 0:00:30]} Nxc4 {[%emt 0:00:30]} 29. Bb4 {[%emt 0:00:30]} Bxb4 {[%emt 0:00:30]} 30. axb4 {[%emt 0:00:30]} Rd5 {[%emt 0:00:30]} 31. Nxf4 {[%emt 0:00:30]} Qxf4 {[%emt 0:00:30]} 32. Rxa7 {[%emt 0:00:30]} Kxa7 {[%emt 0:00:30]} 33. Ra1+ {[%emt 0:00:30]} Kb8 {[%emt 0:00:30]} 34. b6 {[%emt 0:00:30]} Nxb6 {[%emt 0:00:30]} 35. Kg1 {[%emt 0:00:30]} d3 {[%emt 0:00:30]} 36. Qe6 {[%emt 0:00:30]} Rg5+ {[%emt 0:00:30]} 37. Kf1 {[%emt 0:00:30]} Rhg8 0-1

[Event "Seniors-LEM-50 Sachsen-Anhalt 2024"]
[Site "Magdeburg"]
[Date "2024.07.03"]
[Round "3.11"]
[White "Wahrenberg, Ralf"]
[Black "Schroeder, Frank"]
[Result "0-1"]
[ECO "D02"]
[WhiteElo "1873"]
[BlackElo "1942"]
[Annotator "NA RC"]
[PlyCount "86"]
[EventDate "2024.06.25"]
[EventType "swiss"]
[EventCountry "GER"]
[SourceTitle "playchess.com"]
[Source "ChessBase"]
[SourceQuality "1"]
[TimeControl "40/5400+30:1800+30"]

1. d4 {[%emt 0:01:45]} d5 {[%emt 1:31:00]} 2. Nf3 {[%emt 0:00:08]} Nf6 {[%emt 0:00:00]} 3. Bf4 {[%emt 0:00:49]} c5 {[%emt 0:00:00]} 4. e3 {[%emt 0:02:10]} Nc6 {[%emt 0:00:00]} 5. c3 {[%emt 0:00:14]} Qb6 {[%emt 0:00:00]} 6. Qb3 {[%emt 0:01:05]} c4 {[%emt 0:00:00]} 7. Qxb6 {[%emt 0:00:40]} axb6 {[%emt 0:00:00]} 8. Na3 {[%emt 0:00:38]} Bf5 {[%emt 0:00:00]} 9. Nb5 {[%emt 0:02:56] D02: 1 d4 d5 2 Nf3 sidelines, including 2...Nf6 3 g3 and 2...Nf6 3 Bf4.} Kd7 {[%emt 0:00:00]} 10. h3 {[%emt 0:01:43]} h6 {[%emt 0:00:00]} 11. Be2 {[%emt 0:01:56]} e6 {[%emt 0:00:00]} 12. O-O {[%emt 0:01:10]} Ra5 {[%emt 0:00:00]} 13. a4 {[%emt 0:16:40]} Be7 {[%emt 0:00:00]} 14. Rfc1 {[%emt 0:00:34]} Rha8 {[%emt 0:00:00]} 15. Bd1 {[%emt 0:00:21]} Ne4 {[%emt 0:00:00]} 16. Kf1 {[%emt 0:05:23]} Nd6 {[%emt 0:00:00]} 17. Nxd6 {[%emt 0:04:23]} Bxd6 {[%emt 0:00:00]} 18. Bxd6 {[%emt 0:07:12]} Kxd6 {[%emt 0:00:00]} 19. Ra3 $1 {[%emt 0:06:13]} Bd3+ {[%emt 0:00:00]} 20. Ke1 {[%emt 0:00:24]} f6 {[%emt 0:00:00]} 21. Rca1 {[%emt 0:02:45]} g5 {[%emt 0:00:00]} 22. Nd2 {[%emt 0:05:03]} e5 {[%emt 0:00:00]} 23. f3 {[%emt 0:03:28]} exd4 {[%emt 0:00:00]} 24. exd4 {[%emt 0:00:48]} Re8+ {[%emt 0:00:00]} 25. Kf2 {[%emt 0:00:02]} Raa8 {[%emt 0:00:00]} 26. b3 {[%emt 0:07:52]} Re7 {[%emt 0:00:00]} 27. bxc4 {[%emt 0:00:18]} dxc4 {[%emt 0:00:00]} 28. Nf1 {[%emt 0:09:05]} f5 {[%emt 0:00:00]} 29. f4 {[%emt 0:05:44]} gxf4 {[%emt 0:00:00]} 30. Bf3 {[%emt 0:01:04]} Rae8 {[%emt 0:00:00]} (30... Na5 $142 31. Nd2 Re3) 31. R3a2 {[%emt 0:00:20]} Na5 {[%emt 0:00:00]} 32. Rb2 {[%emt 0:02:11]} Nb3 {[%emt 0:00:00]} 33. Rd1 {[%emt 0:00:04] [#]} Be4 $1 {[%emt 0:00:00]} 34. Nd2 $17 {[%emt 0:05:20]} Nxd2 {[%emt 0:06:08]} 35. Rdxd2 {[%emt 0:00:12]} Kc7 {[%emt 0:02:16]} 36. Rb4 {[%emt 0:01:01]} Bd3 {[%emt 0:01:56]} 37. Rdb2 {[%emt 0:00:23]} Re1 {[%emt 0:02:18]} 38. g3 {[%emt 0:02:25]} fxg3+ {[%emt 0:01:32]} 39. Kxg3 {[%emt 0:00:02]} f4+ {[%emt 0:02:13]} 40. Kxf4 {[%emt 0:04:47]} Rf8+ {[%emt 0:00:24]} 41. Kg3 {[%emt 0:02:26]} Re3 {[%emt 0:03:28]} 42. Rf2 {[%emt 0:01:50]} Be4 {[%emt 0:00:49]} 43. Rxc4+ {[%emt 0:01:02]} Kd7 {[%emt 0:01:10]} 0-1